Workbook

Sheet Feuil1 (hidden)
A1: ponts | B1: =Feuil2!G32 -> 1 | C1: =Feuil2!H32 -> 1 | D1: phase(t)
A2: phases | B2: =Feuil2!G33 -> 0.01 | C2: =Feuil2!H33 -> 0 | D2: 0
B3: X | C3: Y
A4: 0 | B4: =COS((B$1*$A4-B$2-D$2)*PI()/180) -> 0.9999999848 | C4: =COS((C$1*$A4-C$2-D$2)*PI()/180) -> 1
A5: 10 | B5: =COS((B$1*$A5-B$2-D$2)*PI()/180) -> 0.9848380453 | C5: =COS((C$1*$A5-C$2-D$2)*PI()/180) -> 0.984807753
A6: 20 | B6: 0.9397523002 | C6: 0.9396926208
A7: 30 | B7: 0.8661126571 | C7: 0.8660254038
A8: 40 | B8: 0.7661566191 | C8: 0.7660444431
A9: 50 | B9: 0.6429212999 | C9: 0.6427876097
A10: 60 | B10: 0.5001511423 | C10: 0.5
A11: 70 | B11: 0.3421841454 | C11: 0.3420201433
A12: 80 | B12: 0.1738200564 | C12: 0.1736481777
A13: 90 | B13: 0.0001745329243 | C13: 6.125742275e-17
A14: 100 | B14: -0.1734762936 | C14: -0.1736481777
A15: 110 | B15: -0.3418561308 | C15: -0.3420201433
A16: 120 | B16: -0.4998488424 | C16: -0.5
A17: 130 | B17: -0.6426538999 | C17: -0.6427876097
A18: 140 | B18: -0.7659322439 | C18: -0.7660444431
A19: 150 | B19: -0.8659381241 | C19: -0.8660254038
A20: 160 | B20: -0.9396329127 | C20: -0.9396926208
A21: 170 | B21: -0.9847774307 | C21: -0.984807753
A22: 180 | B22: -0.9999999848 | C22: -1
A23: 190 | B23: -0.9848380453 | C23: -0.984807753
A24: 200 | B24: -0.9397523002 | C24: -0.9396926208
A25: 210 | B25: -0.8661126571 | C25: -0.8660254038
A26: 220 | B26: -0.7661566191 | C26: -0.7660444431
A27: 230 | B27: -0.6429212999 | C27: -0.6427876097
A28: 240 | B28: -0.5001511423 | C28: -0.5
A29: 250 | B29: -0.3421841454 | C29: -0.3420201433
A30: 260 | B30: -0.1738200564 | C30: -0.1736481777
A31: 270 | B31: -0.0001745329243 | C31: -1.837722682e-16
A32: 280 | B32: 0.1734762936 | C32: 0.1736481777
A33: 290 | B33: 0.3418561308 | C33: 0.3420201433
A34: 300 | B34: 0.4998488424 | C34: 0.5
A35: 310 | B35: 0.6426538999 | C35: 0.6427876097
A36: 320 | B36: 0.7659322439 | C36: 0.7660444431
A37: 330 | B37: 0.8659381241 | C37: 0.8660254038
A38: 340 | B38: 0.9396329127 | C38: 0.9396926208
A39: 350 | B39: 0.9847774307 | C39: 0.984807753
A40: 360 | B40: 0.9999999848 | C40: 1

Sheet Feuil2
J29: Angle | K29: 80
G31: X | H31: Y | I31: Z | J31: Arete | K31: 10
F32: Vecteur | G32: 1 | H32: 1 | I32: 1 | J32: Alpha | K32: 9
F33: Pas de temps | G33: 0.01 | J33: Eloignement | K33: 60

Sheet Feuille1 (hidden)
A1: angle | B1: =B70 -> 80 | C1: degres | D1: D2
E2: i | F2: j | G2: k | J2: Meilleure perp | K2: Autre | M2: a | N2: d | O2: Bf-ec
A3: =B72 -> 1 | B3: kx | C3: =A3/$A$7 -> 0.5773502692 | E3: 0 | F3: =-C5 -> -0.5773502692 | G3: =C4 -> 0.5773502692 | I3: =IF(E$9=1,E3,IF(F$9=1,F3,G3)) -> 0 | J3: =I3/SQRT(I$7) -> 0 | K3: =-C4*J5+C5*J4 -> 0.8164965809 | M3: b | N3: e | O3: Cd-af
A4: =B73 -> 1 | B4: ky | C4: =A4/$A$7 -> 0.5773502692 | E4: =C5 -> 0.5773502692 | F4: 0 | G4: =-C3 -> -0.5773502692 | I4: =IF(E$9=1,E4,IF(F$9=1,F4,G4)) -> 0.5773502692 | J4: =I4/SQRT(I$7) -> 0.7071067812 | K4: =-C5*J3+C3*J5 -> -0.4082482905 | M4: c | N4: f | O4: Ae-db
A5: =B74 -> 1 | B5: kz | C5: =A5/$A$7 -> 0.5773502692 | E5: =-C4 -> -0.5773502692 | F5: =C3 -> 0.5773502692 | G5: 0 | I5: =IF(E$9=1,E5,IF(F$9=1,F5,G5)) -> -0.5773502692 | J5: =I5/SQRT(I$7) -> -0.7071067812 | K5: =-C3*J4+C4*J3 -> -0.4082482905
A7: =SQRT(A3*A3+A4*A4+A5*A5) -> 1.732050808 | C7: =SQRT(C3*C3+C4*C4+C5*C5) -> 1 | E7: =E3*E3+E4*E4+E5*E5 -> 0.6666666667 | F7: =F3*F3+F4*F4+F5*F5 -> 0.6666666667 | G7: =G3*G3+G4*G4+G5*G5 -> 0.6666666667 | I7: =I3*I3+I4*I4+I5*I5 -> 0.6666666667 | J7: =J3*J3+J4*J4+J5*J5 -> 1 | K7: =K3*K3+K4*K4+K5*K5 -> 1
D9: rang | E9: =RANK(E7,$E7:$G7) -> 1 | F9: =RANK(F7,$E7:$G7) -> 1 | G9: =RANK(G7,$E7:$G7) -> 1
A11: Matrice
A13: =K3 -> 0.8164965809 | B13: =J3 -> 0 | C13: =C3 -> 0.5773502692 | E13: =MINVERSE(A13:C15) -> 0.8164965809 | F13: -0.4082482905 | G13: -0.4082482905 | H13: <--- | I13: inverse
A14: =K4 -> -0.4082482905 | B14: =J4 -> 0.7071067812 | C14: =C4 -> 0.5773502692 | E14: 0 | F14: 0.7071067812 | G14: -0.7071067812
A15: =K5 -> -0.4082482905 | B15: =J5 -> -0.7071067812 | C15: =C5 -> 0.5773502692 | E15: 0.5773502692 | F15: 0.5773502692 | G15: 0.5773502692
E17: =TRANSPOSE(A13:C15) -> 0.8164965809 | F17: -0.4082482905 | G17: -0.4082482905 | H17: <--- | I17: transposee
E18: 0 | F18: 0.7071067812 | G18: -0.7071067812
E19: 0.5773502692 | F19: 0.5773502692 | G19: 0.5773502692
E21: =E17-E13 -> 0 | F21: 0 | G21: 0
C22: Inverse – transposee | E22: 0 | F22: 0 | G22: 0
E23: 0 | F23: 0 | G23: 0
C25: X | D25: Y | E25: Z
A26: Sommet | B26: 1 | C26: 0 | D26: 0 | E26: 0
A27: Sommet | B27: 2 | C27: 1 | D27: 0 | E27: 0
A28: Sommet | B28: 3 | C28: 1 | D28: 0 | E28: 1
A29: Sommet | B29: 4 | C29: 0 | D29: 0 | E29: 1
A30: Sommet | B30: 5 | C30: 0 | D30: 1 | E30: 0
A31: Sommet | B31: 6 | C31: 1 | D31: 1 | E31: 0
A32: Sommet | B32: 7 | C32: 1 | D32: 1 | E32: 1
A33: Sommet | B33: 8 | C33: 0 | D33: 1 | E33: 1 | F33: F34 (vide ou pas)
A35: centre | C35: 0.5 | D35: 0.5 | E35: 0.5
A38: arete | B38: =B76 -> 10 | C38: cm
B39: Sommet | C39: X | D39: Y | E39: Z
B40: =B26 -> 1 | C40: =(C26-C$35)*$B$38 -> -5 | D40: -5 | E40: -5
B41: 2 | C41: 5 | D41: -5 | E41: -5
B42: 3 | C42: 5 | D42: -5 | E42: 5
B43: 4 | C43: -5 | D43: -5 | E43: 5
B44: 5 | C44: -5 | D44: 5 | E44: -5
B45: 6 | C45: 5 | D45: 5 | E45: -5
B46: 7 | C46: 5 | D46: 5 | E46: 5
B47: 8 | C47: -5 | D47: 5 | E47: 5
I49: =TRANSPOSE(B39:E47) -> Sommet | J49: 1 | K49: 2 | L49: 3 | M49: 4 | N49: 5 | O49: 6 | P49: 7 | Q49: 8
I50: X | J50: -5 | K50: 5 | L50: 5 | M50: -5 | N50: -5 | O50: 5 | P50: 5 | Q50: -5
I51: Y | J51: -5 | K51: -5 | L51: -5 | M51: -5 | N51: 5 | O51: 5 | P51: 5 | Q51: 5
I52: Z | J52: -5 | K52: -5 | L52: 5 | M52: 5 | N52: -5 | O52: -5 | P52: 5 | Q52: 5
A55: inverse | B55: =E17 -> 0.8164965809 | C55: -0.4082482905 | D55: -0.4082482905 | F55: cos | G55: =COS(B1*PI()/180) -> 0.1736481777 | I55: suivant i | J55: =MMULT(B55:D57,J50:Q52) -> 0 | K55: 8.164965809 | L55: 4.082482905 | M55: -4.082482905 | N55: -4.082482905 | O55: 4.082482905 | P55: 0 | Q55: -8.164965809
B56: 0 | C56: 0.7071067812 | D56: -0.7071067812 | F56: sin | G56: =SIN(B1*PI()/180) -> 0.984807753 | I56: suivant j | J56: 0 | K56: 0 | L56: -7.071067812 | M56: -7.071067812 | N56: 7.071067812 | O56: 7.071067812 | P56: 0 | Q56: 0
B57: 0.5773502692 | C57: 0.5773502692 | D57: 0.5773502692 | I57: suivant k | J57: -8.660254038 | K57: -2.886751346 | L57: 2.886751346 | M57: -2.886751346 | N57: -2.886751346 | O57: 2.886751346 | P57: 8.660254038 | Q57: 2.886751346
I59: Apres rotation X | J59: =J55*$G$55-J56*$G$56 -> 0 | K59: 1.417831433 | L59: 7.67255812 | M59: 6.254726686 | N59: -7.67255812 | O59: -6.254726686 | P59: 0 | Q59: -1.417831433
I60: Apres rotation Y | J60: =J56*$G$55+J55*$G$56 -> 0 | K60: 8.040921632 | L60: 2.792582776 | M60: -5.248338856 | N60: -2.792582776 | O60: 5.248338856 | P60: 0 | Q60: -8.040921632
J61: =J57 -> -8.660254038 | K61: -2.886751346 | L61: 2.886751346 | M61: -2.886751346 | N61: -2.886751346 | O61: 2.886751346 | P61: 8.660254038 | Q61: 2.886751346
A64: directe | B64: =A13 -> 0.8164965809 | C64: 0 | D64: 0.5773502692 | I64: suivant X | J64: =MMULT(B64:D66,J59:Q61) -> -5 | K64: -0.5090121489 | L64: 7.931284139 | M64: 3.440296287 | N64: -7.931284139 | O64: -3.440296287 | P64: 5 | Q64: 0.5090121489
B65: -0.4082482905 | C65: 0.7071067812 | D65: 0.5773502692 | I65: suivant Y | J65: -5 | K65: 3.440296287 | L65: 0.5090121489 | M65: -7.931284139 | N65: -0.5090121489 | O65: 7.931284139 | P65: 5 | Q65: -3.440296287
B66: -0.4082482905 | C66: -0.7071067812 | D66: 0.5773502692 | I66: suivant Z | J66: -5 | K66: -7.931284139 | L66: -3.440296287 | M66: -0.5090121489 | N66: 3.440296287 | O66: 0.5090121489 | P66: 5 | Q66: 7.931284139
I68: sommet | J68: 1 | K68: 2 | L68: 3 | M68: 4 | N68: 5 | O68: 6 | P68: 7 | Q68: 8
I69: x | J69: =$B$77*J64/(J$66+$B$78) -> -0.8181818182 | K69: -0.08798199195 | L69: 1.262056775 | M69: 0.5204597823 | N69: -1.125176921 | O69: -0.5117033891 | P69: 0.6923076923 | Q69: 0.06743740234
A70: angle | B70: =Feuil2!K29 -> 80 | C70: degres | I70: y | J70: -0.8181818182 | K70: 0.5946500903 | L70: 0.08099599254 | M70: -1.199871776 | N70: -0.07221134843 | O70: 1.179684723 | P70: 0.6923076923 | Q70: -0.4557939244
A72: vecteur | B72: =Feuil2!G32 -> 1 | I72: =TRANSPOSE(I68:Q70) -> sommet | J72: x | K72: y | M72: liste des liaisons | O72: X | P72: Y
B73: =Feuil2!H32 -> 1 | I73: 1 | J73: -0.8181818182 | K73: -0.8181818182 | M73: 1 | O73: =J73 -> -0.8181818182 | P73: -0.8181818182
B74: =Feuil2!I32 -> 1 | I74: 2 | J74: -0.08798199195 | K74: 0.5946500903 | M74: 2 | O74: -0.08798199195 | P74: 0.5946500903
I75: 3 | J75: 1.262056775 | K75: 0.08099599254 | M75: 3 | O75: 1.262056775 | P75: 0.08099599254
A76: arete | B76: =Feuil2!K31 -> 10 | C76: cm | I76: 4 | J76: 0.5204597823 | K76: -1.199871776 | M76: 4 | O76: 0.5204597823 | P76: -1.199871776
A77: alpha | B77: =Feuil2!K32 -> 9 | C77: cm | I77: 5 | J77: -1.125176921 | K77: -0.07221134843 | M77: 1 | O77: =J73 -> -0.8181818182 | P77: =K73 -> -0.8181818182
A78: Eloignement Z | B78: =Feuil2!K33 -> 60 | C78: cm | I78: 6 | J78: -0.5117033891 | K78: 1.179684723 | M78: 5 | O78: =J77 -> -1.125176921 | P78: -0.07221134843
I79: 7 | J79: 0.6923076923 | K79: 0.6923076923 | M79: 6 | O79: -0.5117033891 | P79: 1.179684723
I80: 8 | J80: 0.06743740234 | K80: -0.4557939244 | M80: 7 | O80: 0.6923076923 | P80: 0.6923076923
M81: 8 | O81: 0.06743740234 | P81: -0.4557939244
M82: 5 | O82: =J77 -> -1.125176921 | P82: =K77 -> -0.07221134843
M83: 6 | O83: =J78 -> -0.5117033891 | P83: =K78 -> 1.179684723
M84: 2 | O84: =J74 -> -0.08798199195 | P84: =K74 -> 0.5946500903
M85: 3 | O85: =J75 -> 1.262056775 | P85: =K75 -> 0.08099599254
M86: 7 | O86: =J79 -> 0.6923076923 | P86: =K79 -> 0.6923076923
M87: 8 | O87: =J80 -> 0.06743740234 | P87: =K80 -> -0.4557939244
M88: 4 | O88: =J76 -> 0.5204597823 | P88: =K76 -> -1.199871776
